2CCN - Level 2 Cost Centre Name,,9CCN - Level 9 Cost Centre Name,9CCC - Level 9 Cost Centre Code,9AN - Level 9 Account Name,9AC - Level 9 Account Code,Date posted,Date of transaction,Merchant Name,Merchant City,Merchant State,Merchant Zip Code,Originating Account Name,Originating Account Number,MCC/SIC Code,MCC Description,Original Amount,Currency,Conversion Rate,Billed Amount,Debit Credit,Reference Number,Statement Cycle,Account Name
Gloucester City Council,23UE,Museum of Gloucester,MU002,General Supplies/Materials,3025,03/06/2019,31/05/2019,WILKO RETAIL LIMIT,GLOUCESTER 14,,GL11SL,REDACTED,556*********2362,5722,HOUSEHOLD APPLIANCE STORES,16.05,Pound Sterling (826),1.000000000,16.05,Debit,85481479152143893329002,02/07/2019,GLOUCESTER CC
Gloucester City Council,23UE,Museum of Gloucester Catering,MU004,Hospitality & Refreshments,3104,03/06/2019,01/06/2019,ASDA SUPERSTORE,GLOUCESTER,GBR,GL1 1DS,REDACTED,556*********2362,5411,"GROCERY STORES, SUPERMARKETS",7.85,Pound Sterling (826),1.000000000,7.85,Debit,15377759153090751203860,02/07/2019,GLOUCESTER CC
Gloucester City Council,23UE,Museum of Gloucester,MU002,Exhibition Costs,3021,04/06/2019,03/06/2019,JOHNSTONES DECORATING,GLOUCESTER,GBR,GL4 3SJ,REDACTED,556*********2362,5231,"GLASS, PAINT, WALLPAPER STORES",142.92,Pound Sterling (826),1.000000000,142.92,Debit,45425159155000350281837,02/07/2019,GLOUCESTER CC
Gloucester City Council,23UE,Museum of Gloucester,MU002,General Supplies/Materials,3025,05/06/2019,09/05/2019,WWW.PRESERVATIONEQUIPM,01379647400,,IP22 4HQ,REDACTED,556*********2362,4225,"PUBLIC WAREHOUSING-FARM PROD,REFRIGERATE",196.05,Pound Sterling (826),1.000000000,196.05,Debit,55504439155174103623691,02/07/2019,GLOUCESTER CC
Gloucester City Council,23UE,Museum of Gloucester,MU002,General Supplies/Materials,3025,07/06/2019,06/06/2019,SPORTSDIRECT 285,08443325285,,GL11SE,REDACTED,556*********2362,5941,SPORTING GOODS STORES,12.00,Pound Sterling (826),1.000000000,12.00,Debit,85481479158145532473590,02/07/2019,GLOUCESTER CC
Gloucester City Council,23UE,Museum of Gloucester Catering,MU004,Hospitality & Refreshments,3104,10/06/2019,07/06/2019,ASDA SUPERSTORE,GLOUCESTER,GBR,GL1 1DS,REDACTED,556*********2362,5411,"GROCERY STORES, SUPERMARKETS",6.46,Pound Sterling (826),1.000000000,6.46,Debit,45377759159040280095791,02/07/2019,GLOUCESTER CC
Gloucester City Council,23UE,Museum of Gloucester,MU002,General Supplies/Materials,3025,10/06/2019,08/06/2019,HOBBYCRAFT,GLOUCESTER,,GL1 5SF,REDACTED,556*********2362,5970,"ARTIST SUPPLY STORES, CRAFT SHOPS",31.05,Pound Sterling (826),1.000000000,31.05,Debit,55541969160469000061993,02/07/2019,GLOUCESTER CC
Gloucester City Council,23UE,Museum of Gloucester,MU002,Exhibition Costs,3021,11/06/2019,10/06/2019,LYCO GROUP LTD,MILTON KEYNES,GBR,MK1 1ZR,REDACTED,556*********2362,5065,ELECTRICAL PARTS AND EQUIPMENT,79.06,Pound Sterling (826),1.000000000,79.06,Debit,15276329162000169551647,02/07/2019,GLOUCESTER CC
Gloucester City Council,23UE,Museum of Gloucester,MU002,Exhibition Costs,3021,11/06/2019,10/06/2019,MACHINE MART 51,GLOUCESTER,,GL1 4HY,REDACTED,556*********2362,5722,HOUSEHOLD APPLIANCE STORES,7.19,Pound Sterling (826),1.000000000,7.19,Debit,55504439161110299084464,02/07/2019,GLOUCESTER CC
Gloucester City Council,23UE,Museum of Gloucester,MU002,Exhibition Costs,3021,14/06/2019,13/06/2019,AMZNMktplace,amazon.co.uk,GBR,EC2A 2FA,REDACTED,556*********2362,5999,MISCELLANEOUS AND RETAIL STORES,9.98,Pound Sterling (826),1.000000000,9.98,Debit,55204729164200275323954,02/07/2019,GLOUCESTER CC
Gloucester City Council,23UE,Museum of Gloucester,MU002,Exhibition Costs,3021,14/06/2019,13/06/2019,AMZNMktplace,amazon.co.uk,GBR,EC2A 2FA,REDACTED,556*********2362,5999,MISCELLANEOUS AND RETAIL STORES,95.97,Pound Sterling (826),1.000000000,95.97,Debit,55204729164200416106136,02/07/2019,GLOUCESTER CC
Gloucester City Council,23UE,Museum of Gloucester Catering,MU004,Hospitality & Refreshments,3104,14/06/2019,13/06/2019,ASDA SUPERSTORE,GLOUCESTER,GBR,GL1 1DS,REDACTED,556*********2362,5411,"GROCERY STORES, SUPERMARKETS",1.98,Pound Sterling (826),1.000000000,1.98,Debit,45377759165080270756764,02/07/2019,GLOUCESTER CC
Gloucester City Council,23UE,Museum of Gloucester,MU002,General Supplies/Materials,3025,17/06/2019,14/06/2019,DUNELM (SOFT FURNISHIN,GLOUCESTER,GBR,GL1 2TF,REDACTED,556*********2362,5714,"WINDOW COVERING, UPHOLSTERY AND DRAPERY STORES",11.29,Pound Sterling (826),1.000000000,11.29,Debit,55377759166090401399200,02/07/2019,GLOUCESTER CC
Gloucester City Council,23UE,Museum of Gloucester Catering,MU004,Hospitality & Refreshments,3104,17/06/2019,15/06/2019,ASDA SUPERSTORE,GLOUCESTER,GBR,GL1 1DS,REDACTED,556*********2362,5411,"GROCERY STORES, SUPERMARKETS",14.46,Pound Sterling (826),1.000000000,14.46,Debit,15377759167090735707238,02/07/2019,GLOUCESTER CC
Gloucester City Council,23UE,Museum of Gloucester Catering,MU004,Hospitality & Refreshments,3104,20/06/2019,19/06/2019,TESCO STORES 6819,GLOUCESTER,GBR,GL1 1TP,REDACTED,556*********2362,5411,"GROCERY STORES, SUPERMARKETS",2.20,Pound Sterling (826),1.000000000,2.20,Debit,15377759171020044397482,02/07/2019,GLOUCESTER CC
Gloucester City Council,23UE,Museum of Gloucester,MU002,General Supplies/Materials,3025,20/06/2019,19/06/2019,WILKO RETAIL LIMIT,GLOUCESTER 14,,GL11SL,REDACTED,556*********2362,5722,HOUSEHOLD APPLIANCE STORES,10.00,Pound Sterling (826),1.000000000,10.00,Debit,85481479171148776893641,02/07/2019,GLOUCESTER CC
Gloucester City Council,23UE,Museum of Gloucester Catering,MU004,Hospitality & Refreshments,3104,21/06/2019,20/06/2019,ASDA SUPERSTORE,GLOUCESTER,GBR,GL1 1DS,REDACTED,556*********2362,5411,"GROCERY STORES, SUPERMARKETS",2.96,Pound Sterling (826),1.000000000,2.96,Debit,45377759172030277819330,02/07/2019,GLOUCESTER CC
Gloucester City Council,23UE,Museum of Gloucester,MU002,Exhibition Costs,3021,24/06/2019,21/06/2019,AMZNMktplace,amazon.co.uk,GBR,EC2A 2FA,REDACTED,556*********2362,5999,MISCELLANEOUS AND RETAIL STORES,21.99,Pound Sterling (826),1.000000000,21.99,Debit,55204729172200143075836,02/07/2019,GLOUCESTER CC
Gloucester City Council,23UE,Museum of Gloucester,MU002,Exhibition Costs,3021,24/06/2019,22/06/2019,Amazon.co.uk*M644A3X74,AMAZON.CO.UK,LUX,L2338,REDACTED,556*********2362,5969,ALL OTHER DIRECT MARKETERS,18.85,Pound Sterling (826),1.000000000,18.85,Debit,55204729173200405001362,02/07/2019,GLOUCESTER CC
Gloucester City Council,23UE,Museum of Gloucester,MU002,Exhibition Costs,3021,24/06/2019,22/06/2019,AMZNMktplace,amazon.co.uk,GBR,EC2A 2FA,REDACTED,556*********2362,5999,MISCELLANEOUS AND RETAIL STORES,14.48,Pound Sterling (826),1.000000000,14.48,Debit,55204729173200405042804,02/07/2019,GLOUCESTER CC
Gloucester City Council,23UE,Museum of Gloucester Catering,MU004,Hospitality & Refreshments,3104,24/06/2019,22/06/2019,ASDA SUPERSTORE,GLOUCESTER,GBR,GL1 1DS,REDACTED,556*********2362,5411,"GROCERY STORES, SUPERMARKETS",30.80,Pound Sterling (826),1.000000000,30.80,Debit,15377759174040712690494,02/07/2019,GLOUCESTER CC
Gloucester City Council,23UE,Museum of Gloucester,MU002,General Supplies/Materials,3025,27/06/2019,26/06/2019,WILKO RETAIL LIMIT,GLOUCESTER 14,,GL11SL,REDACTED,556*********2362,5722,HOUSEHOLD APPLIANCE STORES,5.50,Pound Sterling (826),1.000000000,5.50,Debit,85481479178150614824930,02/07/2019,GLOUCESTER CC
Gloucester City Council,23UE,Managing Director & Directors,MT001,Equipment and Furniture,3001,07/06/2019,06/06/2019,Amazon.co.uk*M62WQ24R4,AMAZON.CO.UK,,,REDACTED,471*********7903,5969,ALL OTHER DIRECT MARKETERS,99.98,Pound Sterling (826),1.000000000,99.98,Debit,74313229157100373276972,02/07/2019,GLOUCESTER CC
Gloucester City Council,23UE,Managing Director & Directors,MT001,Equipment and Furniture,3001,10/06/2019,06/06/2019,AMAZON.CO.UK*M68M43454 AM,AMAZON.CO.UK,,,REDACTED,471*********7903,5999,MISCELLANEOUS AND RETAIL STORES,99.98,Pound Sterling (826),1.000000000,99.98,Debit,74043339158922125742404,02/07/2019,GLOUCESTER CC
Gloucester City Council,23UE,Members Support,DS002,Public Transport - Staff,2402,25/06/2019,24/06/2019,TRAINLINE,LONDON,,,REDACTED,471*********7903,4112,PASSENGER RAILWAYS,70.50,Pound Sterling (826),1.000000000,70.50,Debit,74998869175924091308459,02/07/2019,GLOUCESTER CC
Gloucester City Council,23UE,Managing Director & Directors,MT001,Equipment and Furniture,3001,26/06/2019,24/06/2019,AMAZON.CO.UK*M65LQ3MA4 AM,AMAZON.CO.UK,,,REDACTED,471*********7903,5999,MISCELLANEOUS AND RETAIL STORES,129.90,Pound Sterling (826),1.000000000,129.90,Debit,74043339176925339588149,02/07/2019,GLOUCESTER CC
Gloucester City Council,23UE,Managing Director & Directors,MT001,Stationery,3201,27/06/2019,26/06/2019,CARRIER BAG SHOP,02030029960,,,REDACTED,471*********7903,7399,BUSINESS SERVICES NOT ELSEWHERE CLASSIFIED,53.16,Pound Sterling (826),1.000000000,53.16,Debit,74830509177174165889610,02/07/2019,GLOUCESTER CC
Gloucester City Council,23UE,Managing Director & Directors,MT001,Public Transport - Staff,2402,05/06/2019,04/06/2019,Trainline,London,GBR,1445,REDACTED,556*********1418,4112,PASSENGER RAILWAYS,54.00,Pound Sterling (826),1.000000000,54.00,Debit,85130089155922161833384,02/07/2019,GLOUCESTER CC
Gloucester City Council,23UE,Members Support,DS002,Members Travel Expenses,3609,10/06/2019,07/06/2019,Trainline,London,GBR,1445,REDACTED,556*********1418,4112,PASSENGER RAILWAYS,45.60,Pound Sterling (826),1.000000000,45.60,Debit,85130089158922316483637,02/07/2019,GLOUCESTER CC
Gloucester City Council,23UE,Members Support,DS002,Members Travel Expenses,3609,21/06/2019,20/06/2019,Trainline,London,GBR,1445,REDACTED,556*********1418,4112,PASSENGER RAILWAYS,20.85,Pound Sterling (826),1.000000000,20.85,Debit,85130089171924922542874,02/07/2019,GLOUCESTER CC
Gloucester City Council,23UE,Managing Director & Directors,MT001,Public Transport - Staff,2402,01/07/2019,28/06/2019,Trainline,London,GBR,1445,REDACTED,556*********1418,4112,PASSENGER RAILWAYS,83.80,Pound Sterling (826),1.000000000,83.80,Debit,85130089179925278891106,02/07/2019,GLOUCESTER CC
Gloucester City Council,23UE,Countryside Unit,EP003,Vehicle Repairs and Maintenance,2103,06/06/2019,05/06/2019,MALPASTRACTORS.CO.,01978 664400,,LL13 9XS,REDACTED,556*********6734,5013,MOTOR VEHICLE SUPPLIES AND NEW PARTS,148.99,Pound Sterling (826),1.000000000,148.99,Debit,85481479157145206603168,02/07/2019,GLOUCESTER CC
Gloucester City Council,23UE,Countryside Unit,EP003,General Supplies/Materials,3025,11/06/2019,10/06/2019,IZ *DIRECT FARM SUPPLI,"Quedgeley, Gl",GBR,GL2 4AL,REDACTED,556*********6734,5999,MISCELLANEOUS AND RETAIL STORES,7.60,Pound Sterling (826),1.000000000,7.60,Debit,55184229161881628997020,02/07/2019,GLOUCESTER CC
Gloucester City Council,23UE,Countryside Unit,EP003,Operative Clothing Allowances,0502,13/06/2019,12/06/2019,Amazon.co.uk*M680U1JZ4,AMAZON.CO.UK,LUX,L2338,REDACTED,556*********6734,5969,ALL OTHER DIRECT MARKETERS,24.47,Pound Sterling (826),1.000000000,24.47,Debit,55204729163200157872798,02/07/2019,GLOUCESTER CC
Gloucester City Council,23UE,Countryside Unit,EP003,Vehicle Repairs and Maintenance,2103,26/06/2019,25/06/2019,PAYPAL *TOOL BOX,35314369001,GBR,TW91EH,REDACTED,556*********6734,5533,"AUTOMOTIVE PARTS, ACCESSORIES STORES",38.85,Pound Sterling (826),1.000000000,38.85,Debit,85130089176925136880427,02/07/2019,GLOUCESTER CC
Gloucester City Council,23UE,Guildhall Bar and Caf�,GH005,Catering Provisions,3103,05/06/2019,04/06/2019,SAINSBURYS SACAT 0771,GLOUCESTER,GBR,GL1 2AG,REDACTED,556*********1155,5411,"GROCERY STORES, SUPERMARKETS",22.55,Pound Sterling (826),1.000000000,22.55,Debit,25425159156010173889790,02/07/2019,GLOUCESTER CC
Gloucester City Council,23UE,Guildhall Bar and Caf�,GH005,Catering Provisions,3103,06/06/2019,05/06/2019,SAINSBURYS SACAT 0771,GLOUCESTER,GBR,GL1 2AG,REDACTED,556*********1155,5411,"GROCERY STORES, SUPERMARKETS",7.65,Pound Sterling (826),1.000000000,7.65,Debit,25425159157020173798569,02/07/2019,GLOUCESTER CC
Gloucester City Council,23UE,Guildhall Bar and Caf�,GH005,Catering Provisions,3103,07/06/2019,06/06/2019,SAINSBURYS SACAT 0771,GLOUCESTER,GBR,GL1 2AG,REDACTED,556*********1155,5411,"GROCERY STORES, SUPERMARKETS",16.95,Pound Sterling (826),1.000000000,16.95,Debit,25425159158030183656367,02/07/2019,GLOUCESTER CC
Gloucester City Council,23UE,Guildhall Bar and Caf�,GH005,Catering Provisions,3103,10/06/2019,07/06/2019,TESCO STORES 6819,GLOUCESTER,GBR,GL1 1TP,REDACTED,556*********1155,5411,"GROCERY STORES, SUPERMARKETS",5.70,Pound Sterling (826),1.000000000,5.70,Debit,15377759159040061410550,02/07/2019,GLOUCESTER CC
Gloucester City Council,23UE,Guildhall Bar and Caf�,GH005,Catering Provisions,3103,10/06/2019,07/06/2019,MARKS&SPENCER PLC,GLOUCESTER,GBR,GL1 1PH,REDACTED,556*********1155,5411,"GROCERY STORES, SUPERMARKETS",2.00,Pound Sterling (826),1.000000000,2.00,Debit,35377759159040231295954,02/07/2019,GLOUCESTER CC
Gloucester City Council,23UE,Guildhall Bar and Caf�,GH005,Catering Provisions,3103,11/06/2019,10/06/2019,SAINSBURYS 0771,GLOUCESTER,GBR,GL1 2AG,REDACTED,556*********1155,5411,"GROCERY STORES, SUPERMARKETS",53.64,Pound Sterling (826),1.000000000,53.64,Debit,25425159162050172555556,02/07/2019,GLOUCESTER CC
Gloucester City Council,23UE,Guildhall Bar and Caf�,GH005,Catering Provisions,3103,11/06/2019,10/06/2019,ICELAND,GLOUCESTER,GBR,GL1 1SA,REDACTED,556*********1155,5411,"GROCERY STORES, SUPERMARKETS",20.31,Pound Sterling (826),1.000000000,20.31,Debit,25377759162050128690551,02/07/2019,GLOUCESTER CC
Gloucester City Council,23UE,Guildhall Bar and Caf�,GH005,Catering Provisions,3103,11/06/2019,10/06/2019,B&M RETAIL LTD,HS GLOUCESTER,,GL12DH,REDACTED,556*********1155,5310,DISCOUNT STORES,8.00,Pound Sterling (826),1.000000000,8.00,Debit,85481479162146629513243,02/07/2019,GLOUCESTER CC
Gloucester City Council,23UE,Blackfriars Weddings,GH011,Catering Provisions,3103,13/06/2019,12/06/2019,LIDL GB GLOUCESTER,GLOUCESTER,GBR,GL1 5TE,REDACTED,556*********1155,5411,"GROCERY STORES, SUPERMARKETS",39.83,Pound Sterling (826),1.000000000,39.83,Debit,25377759164070150769782,02/07/2019,GLOUCESTER CC
Gloucester City Council,23UE,Blackfriars Weddings,GH011,Catering Provisions,3103,14/06/2019,13/06/2019,TESCO STORES 6819,GLOUCESTER,GBR,GL1 1TP,REDACTED,556*********1155,5411,"GROCERY STORES, SUPERMARKETS",7.70,Pound Sterling (826),1.000000000,7.70,Debit,15377759165080076245841,02/07/2019,GLOUCESTER CC
Gloucester City Council,23UE,Blackfriars ,GH010,Catering Provisions,3103,14/06/2019,13/06/2019,SAINSBURYS SACAT 0771,GLOUCESTER,GBR,GL1 2AG,REDACTED,556*********1155,5411,"GROCERY STORES, SUPERMARKETS",18.15,Pound Sterling (826),1.000000000,18.15,Debit,25425159165080181712200,02/07/2019,GLOUCESTER CC
Gloucester City Council,23UE,Guildhall Bar and Caf�,GH005,Catering Provisions,3103,17/06/2019,14/06/2019,SAINSBURYS SACAT 0771,GLOUCESTER,GBR,GL1 2AG,REDACTED,556*********1155,5411,"GROCERY STORES, SUPERMARKETS",21.70,Pound Sterling (826),1.000000000,21.70,Debit,25425159166090194204086,02/07/2019,GLOUCESTER CC
Gloucester City Council,23UE,Guildhall Events,GH002,Catering Provisions,3103,24/06/2019,21/06/2019,ASDA GROCERIES ONLINE,INTERNET,GBR,LS11 5AD,REDACTED,556*********1155,5411,"GROCERY STORES, SUPERMARKETS",32.53,Pound Sterling (826),1.000000000,32.53,Debit,45377759173040346522616,02/07/2019,GLOUCESTER CC
Gloucester City Council,23UE,Guildhall Events,GH002,Catering Provisions,3103,24/06/2019,21/06/2019,ASDA GROCERIES ONLINE,INTERNET,GBR,LS11 5AD,REDACTED,556*********1155,5411,"GROCERY STORES, SUPERMARKETS",-2.40,Pound Sterling (826),1.000000000,-2.40,Credit,45377759173040346523770,02/07/2019,GLOUCESTER CC
Gloucester City Council,23UE,Guildhall Bar and Caf�,GH005,Catering Provisions,3103,01/07/2019,28/06/2019,LIDL GB GLOUCESTER,GLOUCESTER,GBR,GL1 5TE,REDACTED,556*********1155,5411,"GROCERY STORES, SUPERMARKETS",25.85,Pound Sterling (826),1.000000000,25.85,Debit,25377759180090150530703,02/07/2019,GLOUCESTER CC
Gloucester City Council,23UE,Gloucester Guildhall,GH001,Equipment and Furniture,3001,02/07/2019,01/07/2019,AMZNMktplace,amazon.co.uk,GBR,EC2A 2FA,REDACTED,556*********1155,5999,MISCELLANEOUS AND RETAIL STORES,29.25,Pound Sterling (826),1.000000000,29.25,Debit,55204729182200519459893,02/07/2019,GLOUCESTER CC
Gloucester City Council,23UE,Gloucester Guildhall,GH001,General Supplies/Materials,3025,05/06/2019,03/06/2019,PAYPAL *VIDEOANDPRO,35314369001,GBR,TW91EH,REDACTED,556*********8997,5946,CAMERA AND PHOTOGRAPHIC SUPPLY STORES,507.00,Pound Sterling (826),1.000000000,507.00,Debit,85130089155922123535994,02/07/2019,GLOUCESTER CC
Gloucester City Council,23UE,Museum of Gloucester,MU002,Supplies For Resale,3020,05/06/2019,04/06/2019,AMZNMktplace,amazon.co.uk,GBR,EC2A 2FA,REDACTED,556*********8997,5999,MISCELLANEOUS AND RETAIL STORES,39.16,Pound Sterling (826),1.000000000,39.16,Debit,55204729155200321318058,02/07/2019,GLOUCESTER CC
Gloucester City Council,23UE,Museum of Gloucester,MU002,Exhibition Costs,3021,10/06/2019,07/06/2019,B&H PHOTO 800-606-696,800-2215743,NY,10001,REDACTED,556*********8997,5969,ALL OTHER DIRECT MARKETERS,35.66,US Dollar (840),1.232630487,28.93,Debit,75418239158074373446589,02/07/2019,GLOUCESTER CC
Gloucester City Council,23UE,Museum of Gloucester,MU002,Exhibition Costs,3021,10/06/2019,07/06/2019,Premier Farnell,Preston,GBR,LS12 2NE,REDACTED,556*********8997,5065,ELECTRICAL PARTS AND EQUIPMENT,10.08,Pound Sterling (826),1.000000000,10.08,Debit,85130089160922343697403,02/07/2019,GLOUCESTER CC
Gloucester City Council,23UE,Museum of Gloucester,MU002,Exhibition Costs,3021,11/06/2019,10/06/2019,AMZNMktplace,amazon.co.uk,GBR,EC2A 2FA,REDACTED,556*********8997,5999,MISCELLANEOUS AND RETAIL STORES,181.94,Pound Sterling (826),1.000000000,181.94,Debit,55204729161200646844145,02/07/2019,GLOUCESTER CC
Gloucester City Council,23UE,Gloucester Guildhall,GH001,Equipment and Furniture,3001,12/06/2019,11/06/2019,AMZNMktplace,amazon.co.uk,GBR,EC2A 2FA,REDACTED,556*********8997,5999,MISCELLANEOUS AND RETAIL STORES,30.55,Pound Sterling (826),1.000000000,30.55,Debit,55204729162200897976256,02/07/2019,GLOUCESTER CC
Gloucester City Council,23UE,Gloucester Guildhall,GH001,Equipment and Furniture,3001,12/06/2019,11/06/2019,AMZNMktplace,amazon.co.uk,GBR,EC2A 2FA,REDACTED,556*********8997,5999,MISCELLANEOUS AND RETAIL STORES,13.09,Pound Sterling (826),1.000000000,13.09,Debit,55204729162200899933610,02/07/2019,GLOUCESTER CC
Gloucester City Council,23UE,Gloucester Guildhall,GH001,Equipment and Furniture,3001,13/06/2019,12/06/2019,AMZNMktplace,amazon.co.uk,GBR,EC2A 2FA,REDACTED,556*********8997,5999,MISCELLANEOUS AND RETAIL STORES,50.73,Pound Sterling (826),1.000000000,50.73,Debit,55204729163200067914540,02/07/2019,GLOUCESTER CC
Gloucester City Council,23UE,Blackfriars ,GH010,Equipment and Furniture,3001,14/06/2019,13/06/2019,AMZNMktplace,amazon.co.uk,GBR,EC2A 2FA,REDACTED,556*********8997,5999,MISCELLANEOUS AND RETAIL STORES,16.45,Pound Sterling (826),1.000000000,16.45,Debit,55204729164200295164057,02/07/2019,GLOUCESTER CC
Gloucester City Council,23UE,Blackfriars ,GH010,Equipment and Furniture,3001,17/06/2019,14/06/2019,THOMAS TRAILER HIRE,BROMYARD,GBR,HR7 4JJ,REDACTED,556*********8997,7513,TRUCK AND UTILITY TRAILER RENTAL,270.40,Pound Sterling (826),1.000000000,270.40,Debit,05272479166910078283922,02/07/2019,GLOUCESTER CC
Gloucester City Council,23UE,Shopmobility,SM001,Equipment and Furniture,3001,17/06/2019,14/06/2019,AMZ*EPOSGEAR (UK Based,087-12884890,LUX,L2338,REDACTED,556*********8997,5999,MISCELLANEOUS AND RETAIL STORES,-8.19,Pound Sterling (826),1.000000000,-8.19,Credit,55204729165200588882901,02/07/2019,GLOUCESTER CC
Gloucester City Council,23UE,Shopmobility,SM001,Equipment and Furniture,3001,18/06/2019,18/06/2019,AMZNMktplace,amazon.co.uk,GBR,EC2A 2FA,REDACTED,556*********8997,5999,MISCELLANEOUS AND RETAIL STORES,8.69,Pound Sterling (826),1.000000000,8.69,Debit,55204729169200386572502,02/07/2019,GLOUCESTER CC
Gloucester City Council,23UE,Guildhall Events,GH002,Advertising & Publicity,3404,19/06/2019,18/06/2019,MAILCHIMP *MONTHLY,MAILCHIMP.COM,GA,30308,REDACTED,556*********8997,5968,CONTINUITY/SUBSCRIPTION MERCHANTS,24.12,Pound Sterling (826),1.000000000,24.12,Debit,55425449169200556354119,02/07/2019,GLOUCESTER CC
Gloucester City Council,23UE,Events,GH008,Partnership & Shared Working Agreements,3902,20/06/2019,18/06/2019,GLOUCESTER CC INT,GLOUCESTER,GBR,GL1 2EQ,REDACTED,556*********8997,9399,GOVERNMENT SERVICES NOT ELSEWHERE CLASSIFIED,21.00,Pound Sterling (826),1.000000000,21.00,Debit,15425159171020027075837,02/07/2019,GLOUCESTER CC
Gloucester City Council,23UE,Guildhall Events,GH002,Advertising & Publicity,3404,20/06/2019,19/06/2019,FACEBK *3KJXJNJ9X2,fb.me/ads,IRL,UNKNOWN,REDACTED,556*********8997,7311,ADVERTISING SERVICES,104.55,Pound Sterling (826),1.000000000,104.55,Debit,55204729170200709612883,02/07/2019,GLOUCESTER CC
Gloucester City Council,23UE,Museum of Gloucester,MU002,Exhibition Costs,3021,20/06/2019,19/06/2019,10 OUT OF 10 PRODUCTIO,LONDON,GBR,SE26 5BW,REDACTED,556*********8997,5722,HOUSEHOLD APPLIANCE STORES,29.30,Pound Sterling (826),1.000000000,29.30,Debit,05272469171910008218794,02/07/2019,GLOUCESTER CC
Gloucester City Council,23UE,Museum of Gloucester,MU002,Exhibition Costs,3021,20/06/2019,19/06/2019,WWW.BONZABALLOONS.CO.U,INTERNET,GBR,LS13 2DN,REDACTED,556*********8997,5999,MISCELLANEOUS AND RETAIL STORES,207.92,Pound Sterling (826),1.000000000,207.92,Debit,05272479171910008040791,02/07/2019,GLOUCESTER CC
Gloucester City Council,23UE,Museum of Gloucester,MU002,General Supplies/Materials,3025,21/06/2019,21/06/2019,Amazon.co.uk*M62CI7GK4,AMAZON.CO.UK,LUX,L2338,REDACTED,556*********8997,5969,ALL OTHER DIRECT MARKETERS,17.97,Pound Sterling (826),1.000000000,17.97,Debit,55204729172200022514954,02/07/2019,GLOUCESTER CC
Gloucester City Council,23UE,Blackfriars ,GH010,Equipment and Furniture,3001,24/06/2019,21/06/2019,WOWCHER,0203 699 5024,GBR,LE1 1ZP,REDACTED,556*********8997,7299,MISCELLANEOUS PERSONAL SERVICES,268.99,Pound Sterling (826),1.000000000,268.99,Debit,35425159173040210072884,02/07/2019,GLOUCESTER CC
Gloucester City Council,23UE,Events,GH008,Partnership & Shared Working Agreements,3902,26/06/2019,25/06/2019,SUBABA SYSTEMS,NEWMARKET,,CB8 9XA,REDACTED,556*********8997,5111,"STATIONERY,OFFICE SUPPLIES,PRINTING AND WRITING PAPER",235.80,Pound Sterling (826),1.000000000,235.80,Debit,55541969177465000243509,02/07/2019,GLOUCESTER CC
Gloucester City Council,23UE,Events,GH008,Partnership & Shared Working Agreements,3902,26/06/2019,25/06/2019,PDC EUROPE,NIVELLES,BEL,1400,REDACTED,556*********8997,5965,COMBINATION CATALOG AND RETAIL MERCHANT,132.74,Pound Sterling (826),1.000000000,132.74,Debit,95209149177000001394254,02/07/2019,GLOUCESTER CC
Gloucester City Council,23UE,Gloucester Guildhall,GH001,Partnership & Shared Working Agreements,3902,27/06/2019,25/06/2019,Premier Farnell,Preston,GBR,LS12 2NE,REDACTED,556*********8997,5065,ELECTRICAL PARTS AND EQUIPMENT,53.04,Pound Sterling (826),1.000000000,53.04,Debit,85130089177925170730552,02/07/2019,GLOUCESTER CC
Gloucester City Council,23UE,Shopmobility,SM001,Equipment and Furniture,3001,28/06/2019,27/06/2019,Amazon.co.uk*M644H5HP4,AMAZON.CO.UK,LUX,L2338,REDACTED,556*********8997,5969,ALL OTHER DIRECT MARKETERS,9.80,Pound Sterling (826),1.000000000,9.80,Debit,55204729178200580902454,02/07/2019,GLOUCESTER CC
Gloucester City Council,23UE,Tourist Information Centre,TI002,Equipment and Furniture,3001,01/07/2019,28/06/2019,VISTAPR*VistaPrint.com,866-8936743,NLD,LW 5928,REDACTED,556*********8997,2741,MISCELLANEOUS PUBLISHING & PRINTING,42.95,Pound Sterling (826),1.000000000,42.95,Debit,55204729179200729709520,02/07/2019,GLOUCESTER CC
Gloucester City Council,23UE,Tourist Information Centre,TI002,Equipment and Furniture,3001,01/07/2019,27/06/2019,AMZNMKTPLACE AMAZON.CO,AMAZON.CO.UK,GBR,EC2A 2FA,REDACTED,556*********8997,5999,MISCELLANEOUS AND RETAIL STORES,91.99,Pound Sterling (826),1.000000000,91.99,Debit,85389249179925380341006,02/07/2019,GLOUCESTER CC
Gloucester City Council,23UE,Docks Complex - Services,AM006,Operative Clothing Allowances,0502,17/06/2019,15/06/2019,SUIT DIRECT,GLOUCESTER 3,,GL15SH,REDACTED,556*********4301,5691,MEN'S AND WOMEN'S CLOTHING STORES,89.05,Pound Sterling (826),1.000000000,89.05,Debit,85481479167147949205069,02/07/2019,GLOUCESTER CC
Gloucester City Council,23UE,Docks Complex - Services,AM006,Hospitality & Refreshments,3104,18/06/2019,17/06/2019,SAINSBURYS 2221,GLOUCESTER,GBR,GL2 5SA,REDACTED,556*********4301,5411,"GROCERY STORES, SUPERMARKETS",84.15,Pound Sterling (826),1.000000000,84.15,Debit,25425159169000178137605,02/07/2019,GLOUCESTER CC
Gloucester City Council,23UE,Docks Complex - Services,AM006,Building Repairs and Maintenance,1001,28/06/2019,27/06/2019,B & Q 1179,GLOUCESTER,,GL12SG,REDACTED,556*********4301,5211,LUMBER AND BUILDING MATERIALS STORES,16.96,Pound Sterling (826),1.000000000,16.96,Debit,85481479179150858632782,02/07/2019,GLOUCESTER CC
Gloucester City Council,23UE,Docks Complex - Services,AM006,Hospitality & Refreshments,3104,11/06/2019,10/06/2019,SAINSBURYS SACAT 2221,GLOUCESTER,GBR,GL2 5SA,REDACTED,556*********6128,5411,"GROCERY STORES, SUPERMARKETS",16.50,Pound Sterling (826),1.000000000,16.50,Debit,25425159162050175500310,02/07/2019,GLOUCESTER CC
Gloucester City Council,23UE,Managing Director & Directors,MT001,Equipment and Furniture,3001,04/06/2019,03/06/2019,MBSWORKPLACE ENVIRONME,LEIGHTON BUZZ,LND,LU7 9GW,REDACTED,556*********4234,7221,PHOTOGRAPHIC STUDIOS,99.60,Pound Sterling (826),1.000000000,99.60,Debit,85383909154000001821176,02/07/2019,GLOUCESTER CC
Gloucester City Council,23UE,Development Management,PL003,Public Transport - Staff,2402,04/06/2019,03/06/2019,Trainline,London,GBR,1445,REDACTED,556*********4234,4112,PASSENGER RAILWAYS,9.15,Pound Sterling (826),1.000000000,9.15,Debit,85130089154921116217223,02/07/2019,GLOUCESTER CC
Gloucester City Council,23UE,Economic Development,ED001,Public Transport - Staff,2402,05/06/2019,04/06/2019,Trainline,London,GBR,1445,REDACTED,556*********4234,4112,PASSENGER RAILWAYS,31.25,Pound Sterling (826),1.000000000,31.25,Debit,85130089155922161780288,02/07/2019,GLOUCESTER CC
Gloucester City Council,23UE,Growth and Delivery Manager,PL001,Mileage and Travel Allowances,2401,05/06/2019,04/06/2019,CIRCLE 2 SUCCESS LIMIT,33300536186,,GL53 0DL,REDACTED,556*********4234,7392,"MANAGEMENT, CONSULTING AND PUBLIC RELATIONS SERVICES",24.00,Pound Sterling (826),1.000000000,24.00,Debit,85481479156144961476903,02/07/2019,GLOUCESTER CC
Gloucester City Council,23UE,Development Management,PL003,Public Transport - Staff,2402,10/06/2019,07/06/2019,Trainline,London,GBR,1445,REDACTED,556*********4234,4112,PASSENGER RAILWAYS,53.80,Pound Sterling (826),1.000000000,53.80,Debit,85130089158922316472010,02/07/2019,GLOUCESTER CC
Gloucester City Council,23UE,Council Streetcare Team,NE002,Public Transport - Staff,2402,10/06/2019,07/06/2019,Trainline,London,GBR,1445,REDACTED,556*********4234,4112,PASSENGER RAILWAYS,14.75,Pound Sterling (826),1.000000000,14.75,Debit,85130089158922316477878,02/07/2019,GLOUCESTER CC
Gloucester City Council,23UE,Development Management,PL003,Public Transport - Staff,2402,10/06/2019,07/06/2019,PREMIER INN 44537095,NOTTINGHAM CI,,NG1 0JS,REDACTED,556*********4234,3811,PREMIER INN,43.50,Pound Sterling (826),1.000000000,43.50,Debit,55541969160529000170233,02/07/2019,GLOUCESTER CC
Gloucester City Council,23UE,Historic Buildings,PL006,Public Transport - Staff,2402,11/06/2019,10/06/2019,Trainline,London,GBR,1445,REDACTED,556*********4234,4112,PASSENGER RAILWAYS,10.45,Pound Sterling (826),1.000000000,10.45,Debit,85130089161922450442840,02/07/2019,GLOUCESTER CC
Gloucester City Council,23UE,Community Wellbeing,FL001,Public Transport - Staff,2402,11/06/2019,10/06/2019,Trainline,London,GBR,1445,REDACTED,556*********4234,4112,PASSENGER RAILWAYS,71.40,Pound Sterling (826),1.000000000,71.40,Debit,85130089161922450424186,02/07/2019,GLOUCESTER CC
Gloucester City Council,23UE,City Centre Improvement,NE001,Public Transport - Staff,2402,12/06/2019,11/06/2019,Trainline,London,GBR,1445,REDACTED,556*********4234,4112,PASSENGER RAILWAYS,14.75,Pound Sterling (826),1.000000000,14.75,Debit,85130089162923498015449,02/07/2019,GLOUCESTER CC
Gloucester City Council,23UE,City Centre Improvement,NE001,Public Transport - Staff,2402,12/06/2019,11/06/2019,Trainline,London,GBR,1445,REDACTED,556*********4234,4112,PASSENGER RAILWAYS,7.45,Pound Sterling (826),1.000000000,7.45,Debit,85130089162923498014590,02/07/2019,GLOUCESTER CC
Gloucester City Council,23UE,Council Streetcare Team,NE002,Public Transport - Staff,2402,13/06/2019,12/06/2019,Trainline,London,GBR,1445,REDACTED,556*********4234,4112,PASSENGER RAILWAYS,14.75,Pound Sterling (826),1.000000000,14.75,Debit,85130089163923548765943,02/07/2019,GLOUCESTER CC
Gloucester City Council,23UE,Economic Development,ED001,Public Transport - Staff,2402,13/06/2019,12/06/2019,Trainline,London,GBR,1445,REDACTED,556*********4234,4112,PASSENGER RAILWAYS,10.45,Pound Sterling (826),1.000000000,10.45,Debit,85130089163923548721698,02/07/2019,GLOUCESTER CC
Gloucester City Council,23UE,Council Streetcare Team,NE002,Public Transport - Staff,2402,13/06/2019,12/06/2019,Trainline,London,GBR,1445,REDACTED,556*********4234,4112,PASSENGER RAILWAYS,12.90,Pound Sterling (826),1.000000000,12.90,Debit,85130089163923548767329,02/07/2019,GLOUCESTER CC
Gloucester City Council,23UE,Development Management,PL003,Public Transport - Staff,2402,13/06/2019,12/06/2019,Trainline,London,GBR,1445,REDACTED,556*********4234,4112,PASSENGER RAILWAYS,96.00,Pound Sterling (826),1.000000000,96.00,Debit,85130089163923548761942,02/07/2019,GLOUCESTER CC
Gloucester City Council,23UE,Council Streetcare Team,NE002,Mileage and Travel Allowances,2401,19/06/2019,18/06/2019,HOTEL THEO LIMITED,LONDON,GBR,N7 0AR,REDACTED,556*********4234,7011,"LODGING, HOTELS, MOTELS, RESORTS",200.00,Pound Sterling (826),1.000000000,200.00,Debit,05272469170910117021973,02/07/2019,GLOUCESTER CC
Gloucester City Council,23UE,Council Streetcare Team,NE002,Public Transport - Staff,2402,24/06/2019,21/06/2019,Trainline,London,GBR,1445,REDACTED,556*********4234,4112,PASSENGER RAILWAYS,192.30,Pound Sterling (826),1.000000000,192.30,Debit,85130089172924967447905,02/07/2019,GLOUCESTER CC
Gloucester City Council,23UE,City Centre Improvement,NE001,Public Transport - Staff,2402,02/07/2019,01/07/2019,Trainline,London,GBR,1445,REDACTED,556*********4234,4112,PASSENGER RAILWAYS,72.70,Pound Sterling (826),1.000000000,72.70,Debit,85130089182925405611935,02/07/2019,GLOUCESTER CC
Gloucester City Council,23UE,Members Support,DS002,Public Transport - Staff,2402,11/06/2019,10/06/2019,Trainline,London,GBR,1445,REDACTED,556*********3029,4112,PASSENGER RAILWAYS,89.90,Pound Sterling (826),1.000000000,89.90,Debit,85130089161922450433542,02/07/2019,GLOUCESTER CC
Gloucester City Council,23UE,Housing Services,HS001,B&B Payments,1303,03/06/2019,31/05/2019,TRAVELODGE GB0000,THAME,,OX9 3AT,REDACTED,556*********6959,3615,TRAVELODGE,49.00,Pound Sterling (826),1.000000000,49.00,Debit,55504439151298176434993,02/07/2019,GLOUCESTER CC
Gloucester City Council,23UE,Housing Services,HS001,B&B Payments,1303,03/06/2019,31/05/2019,TRAVELODGE GB0000,THAME,,OX9 3AT,REDACTED,556*********6959,3615,TRAVELODGE,150.00,Pound Sterling (826),1.000000000,150.00,Debit,55504439151298176438259,02/07/2019,GLOUCESTER CC
Gloucester City Council,23UE,Housing Services,HS001,B&B Payments,1303,03/06/2019,31/05/2019,TRAVELODGE GB0000,THAME,,OX9 3AT,REDACTED,556*********6959,3615,TRAVELODGE,260.00,Pound Sterling (826),1.000000000,260.00,Debit,55504439151298176422667,02/07/2019,GLOUCESTER CC
Gloucester City Council,23UE,Housing Services,HS001,B&B Payments,1303,04/06/2019,03/06/2019,TRAVELODGE GB0000,THAME,,OX9 3AT,REDACTED,556*********6959,3615,TRAVELODGE,477.00,Pound Sterling (826),1.000000000,477.00,Debit,55504439154298196145675,02/07/2019,GLOUCESTER CC
Gloucester City Council,23UE,Housing Services,HS001,B&B Payments,1303,04/06/2019,03/06/2019,TRAVELODGE GB0000,THAME,,OX9 3AT,REDACTED,556*********6959,3615,TRAVELODGE,418.00,Pound Sterling (826),1.000000000,418.00,Debit,55504439154298196031297,02/07/2019,GLOUCESTER CC
Gloucester City Council,23UE,Housing Services,HS001,B&B Payments,1303,04/06/2019,03/06/2019,Amerisuites,GLOUCESTER,,GL2 4NF,REDACTED,556*********6959,3514,AMERISUITES,285.00,Pound Sterling (826),1.000000000,285.00,Debit,85481479155144845079064,02/07/2019,GLOUCESTER CC
Gloucester City Council,23UE,Housing Services,HS001,B&B Payments,1303,05/06/2019,04/06/2019,TRAVELODGE GB0000,THAME,,OX9 3AT,REDACTED,556*********6959,3615,TRAVELODGE,201.00,Pound Sterling (826),1.000000000,201.00,Debit,55504439155298104178288,02/07/2019,GLOUCESTER CC
Gloucester City Council,23UE,Housing Services,HS001,B&B Payments,1303,05/06/2019,04/06/2019,TRAVELODGE GB0000,THAME,,OX9 3AT,REDACTED,556*********6959,3615,TRAVELODGE,419.00,Pound Sterling (826),1.000000000,419.00,Debit,55504439155298104168107,02/07/2019,GLOUCESTER CC
Gloucester City Council,23UE,Housing Services,HS001,B&B Payments,1303,06/06/2019,05/06/2019,TRAVELODGE GB0000,THAME,,OX9 3AT,REDACTED,556*********6959,3615,TRAVELODGE,-191.00,Pound Sterling (826),1.000000000,-191.00,Credit,55504439156298111952369,02/07/2019,GLOUCESTER CC
Gloucester City Council,23UE,Housing Services,HS001,B&B Payments,1303,07/06/2019,06/06/2019,TRAVELODGE GB0000,THAME,,OX9 3AT,REDACTED,556*********6959,3615,TRAVELODGE,49.00,Pound Sterling (826),1.000000000,49.00,Debit,55504439157298119828172,02/07/2019,GLOUCESTER CC
Gloucester City Council,23UE,Housing Services,HS001,B&B Payments,1303,10/06/2019,07/06/2019,TRAVELODGE GB0000,THAME,,OX9 3AT,REDACTED,556*********6959,3615,TRAVELODGE,198.00,Pound Sterling (826),1.000000000,198.00,Debit,55504439158298129867185,02/07/2019,GLOUCESTER CC
Gloucester City Council,23UE,Housing Services,HS001,B&B Payments,1303,10/06/2019,07/06/2019,TRAVELODGE GB0000,THAME,,OX9 3AT,REDACTED,556*********6959,3615,TRAVELODGE,198.00,Pound Sterling (826),1.000000000,198.00,Debit,55504439158298129866112,02/07/2019,GLOUCESTER CC
Gloucester City Council,23UE,Housing Services,HS001,B&B Payments,1303,11/06/2019,10/06/2019,TRAVELODGE GB0000,THAME,,OX9 3AT,REDACTED,556*********6959,3615,TRAVELODGE,383.00,Pound Sterling (826),1.000000000,383.00,Debit,55504439161298147660179,02/07/2019,GLOUCESTER CC
Gloucester City Council,23UE,Housing Services,HS001,B&B Payments,1303,11/06/2019,10/06/2019,TRAVELODGE GB0000,THAME,,OX9 3AT,REDACTED,556*********6959,3615,TRAVELODGE,462.00,Pound Sterling (826),1.000000000,462.00,Debit,55504439161298147677637,02/07/2019,GLOUCESTER CC
Gloucester City Council,23UE,Housing Services,HS001,B&B Payments,1303,11/06/2019,10/06/2019,TRAVELODGE GB0000,THAME,,OX9 3AT,REDACTED,556*********6959,3615,TRAVELODGE,231.00,Pound Sterling (826),1.000000000,231.00,Debit,55504439161298147678072,02/07/2019,GLOUCESTER CC
Gloucester City Council,23UE,Housing Services,HS001,B&B Payments,1303,11/06/2019,10/06/2019,TRAVELODGE GB0000,THAME,,OX9 3AT,REDACTED,556*********6959,3615,TRAVELODGE,453.00,Pound Sterling (826),1.000000000,453.00,Debit,55504439161298147694962,02/07/2019,GLOUCESTER CC
Gloucester City Council,23UE,Housing Services,HS001,B&B Payments,1303,11/06/2019,10/06/2019,TRAVELODGE GB0000,THAME,,OX9 3AT,REDACTED,556*********6959,3615,TRAVELODGE,59.00,Pound Sterling (826),1.000000000,59.00,Debit,55504439161298147712582,02/07/2019,GLOUCESTER CC
Gloucester City Council,23UE,Housing Services,HS001,B&B Payments,1303,11/06/2019,10/06/2019,TRAVELODGE GB0000,THAME,,OX9 3AT,REDACTED,556*********6959,3615,TRAVELODGE,59.00,Pound Sterling (826),1.000000000,59.00,Debit,55504439161298147714612,02/07/2019,GLOUCESTER CC
Gloucester City Council,23UE,Housing Services,HS001,B&B Payments,1303,12/06/2019,11/06/2019,TRAVELODGE GB0000,THAME,,OX9 3AT,REDACTED,556*********6959,3615,TRAVELODGE,99.00,Pound Sterling (826),1.000000000,99.00,Debit,55504439162298155230401,02/07/2019,GLOUCESTER CC
Gloucester City Council,23UE,Housing Services,HS001,B&B Payments,1303,12/06/2019,11/06/2019,TRAVELODGE GB0000,THAME,,OX9 3AT,REDACTED,556*********6959,3615,TRAVELODGE,394.00,Pound Sterling (826),1.000000000,394.00,Debit,55504439162298155184897,02/07/2019,GLOUCESTER CC
Gloucester City Council,23UE,Housing Services,HS001,B&B Payments,1303,13/06/2019,12/06/2019,TRAVELODGE GB0000,THAME,,OX9 3AT,REDACTED,556*********6959,3615,TRAVELODGE,123.00,Pound Sterling (826),1.000000000,123.00,Debit,55504439163298162950149,02/07/2019,GLOUCESTER CC
Gloucester City Council,23UE,Housing Services,HS001,B&B Payments,1303,13/06/2019,12/06/2019,TRAVELODGE GB0000,THAME,,OX9 3AT,REDACTED,556*********6959,3615,TRAVELODGE,123.00,Pound Sterling (826),1.000000000,123.00,Debit,55504439163298162952327,02/07/2019,GLOUCESTER CC
Gloucester City Council,23UE,Housing Services,HS001,B&B Payments,1303,13/06/2019,12/06/2019,TRAVELODGE GB0000,THAME,,OX9 3AT,REDACTED,556*********6959,3615,TRAVELODGE,123.00,Pound Sterling (826),1.000000000,123.00,Debit,55504439163298162951766,02/07/2019,GLOUCESTER CC
Gloucester City Council,23UE,Housing Services,HS001,B&B Payments,1303,13/06/2019,12/06/2019,TRAVELODGE GB0000,THAME,,OX9 3AT,REDACTED,556*********6959,3615,TRAVELODGE,163.00,Pound Sterling (826),1.000000000,163.00,Debit,55504439163298162974818,02/07/2019,GLOUCESTER CC
Gloucester City Council,23UE,Housing Services,HS001,B&B Payments,1303,17/06/2019,14/06/2019,TRAVELODGE GB0000,THAME,,OX9 3AT,REDACTED,556*********6959,3615,TRAVELODGE,161.00,Pound Sterling (826),1.000000000,161.00,Debit,55504439165298181042629,02/07/2019,GLOUCESTER CC
Gloucester City Council,23UE,Housing Services,HS001,B&B Payments,1303,17/06/2019,14/06/2019,TRAVELODGE GB0000,THAME,,OX9 3AT,REDACTED,556*********6959,3615,TRAVELODGE,162.00,Pound Sterling (826),1.000000000,162.00,Debit,55504439165298181015666,02/07/2019,GLOUCESTER CC
Gloucester City Council,23UE,Housing Services,HS001,B&B Payments,1303,17/06/2019,14/06/2019,TRAVELODGE GB0821,CHELTENHAM,,GL51 6TA,REDACTED,556*********6959,3615,TRAVELODGE,773.50,Pound Sterling (826),1.000000000,773.50,Debit,55504439167110239765226,02/07/2019,GLOUCESTER CC
Gloucester City Council,23UE,Housing Services,HS001,B&B Payments,1303,18/06/2019,17/06/2019,TRAVELODGE GB0000,THAME,,OX9 3AT,REDACTED,556*********6959,3615,TRAVELODGE,563.00,Pound Sterling (826),1.000000000,563.00,Debit,55504439168298199652580,02/07/2019,GLOUCESTER CC
Gloucester City Council,23UE,Housing Services,HS001,B&B Payments,1303,20/06/2019,17/06/2019,TRAVELODGE GB0809,GLOUCESTER,,GL1 5SF,REDACTED,556*********6959,3615,TRAVELODGE,1085.50,Pound Sterling (826),1.000000000,1085.50,Debit,55504439170110202488751,02/07/2019,GLOUCESTER CC
Gloucester City Council,23UE,Housing Services,HS001,B&B Payments,1303,21/06/2019,20/06/2019,TRAVELODGE GB0000,THAME,,OX9 3AT,REDACTED,556*********6959,3615,TRAVELODGE,686.00,Pound Sterling (826),1.000000000,686.00,Debit,55504439171298122840497,02/07/2019,GLOUCESTER CC
Gloucester City Council,23UE,Housing Services,HS001,General Supplies/Materials,3025,24/06/2019,23/06/2019,Amazon Prime*M67B27VK4,amzn.co.uk/pm,LUX,L2338,REDACTED,556*********6959,5968,CONTINUITY/SUBSCRIPTION MERCHANTS,7.99,Pound Sterling (826),1.000000000,7.99,Debit,55204729174200616794440,02/07/2019,GLOUCESTER CC
Gloucester City Council,23UE,Housing Services,HS001,B&B Payments,1303,25/06/2019,24/06/2019,TRAVELODGE GB0000,THAME,,OX9 3AT,REDACTED,556*********6959,3615,TRAVELODGE,207.00,Pound Sterling (826),1.000000000,207.00,Debit,55504439175298150313363,02/07/2019,GLOUCESTER CC
Gloucester City Council,23UE,Housing Services,HS001,B&B Payments,1303,25/06/2019,24/06/2019,TRAVELODGE GB0000,THAME,,OX9 3AT,REDACTED,556*********6959,3615,TRAVELODGE,153.00,Pound Sterling (826),1.000000000,153.00,Debit,55504439175298150393266,02/07/2019,GLOUCESTER CC
Gloucester City Council,23UE,Housing Services,HS001,B&B Payments,1303,26/06/2019,25/06/2019,TRAVELODGE GB0000,THAME,,OX9 3AT,REDACTED,556*********6959,3615,TRAVELODGE,102.00,Pound Sterling (826),1.000000000,102.00,Debit,55504439176298158450174,02/07/2019,GLOUCESTER CC
Gloucester City Council,23UE,Housing Services,HS001,B&B Payments,1303,26/06/2019,25/06/2019,TRAVELODGE GB0000,THAME,,OX9 3AT,REDACTED,556*********6959,3615,TRAVELODGE,413.00,Pound Sterling (826),1.000000000,413.00,Debit,55504439176298158551997,02/07/2019,GLOUCESTER CC
Gloucester City Council,23UE,Housing Services,HS001,B&B Payments,1303,26/06/2019,25/06/2019,TRAVELODGE GB0000,THAME,,OX9 3AT,REDACTED,556*********6959,3615,TRAVELODGE,102.00,Pound Sterling (826),1.000000000,102.00,Debit,55504439176298158450497,02/07/2019,GLOUCESTER CC
Gloucester City Council,23UE,Housing Services,HS001,B&B Payments,1303,26/06/2019,25/06/2019,TRAVELODGE GB0000,THAME,,OX9 3AT,REDACTED,556*********6959,3615,TRAVELODGE,393.00,Pound Sterling (826),1.000000000,393.00,Debit,55504439176298158453111,02/07/2019,GLOUCESTER CC
Gloucester City Council,23UE,Housing Services,HS001,B&B Payments,1303,28/06/2019,27/06/2019,TRAVELODGE GB0000,THAME,,OX9 3AT,REDACTED,556*********6959,3615,TRAVELODGE,285.00,Pound Sterling (826),1.000000000,285.00,Debit,55504439178298174284712,02/07/2019,GLOUCESTER CC
Gloucester City Council,23UE,Housing Services,HS001,B&B Payments,1303,02/07/2019,01/07/2019,TRAVELODGE GB0000,THAME,,OX9 3AT,REDACTED,556*********6959,3615,TRAVELODGE,438.00,Pound Sterling (826),1.000000000,438.00,Debit,55504439182298105377274,02/07/2019,GLOUCESTER CC
Gloucester City Council,23UE,Housing Services,HS001,B&B Payments,1303,02/07/2019,01/07/2019,TRAVELODGE GB0000,THAME,,OX9 3AT,REDACTED,556*********6959,3615,TRAVELODGE,438.00,Pound Sterling (826),1.000000000,438.00,Debit,55504439182298105377878,02/07/2019,GLOUCESTER CC
Gloucester City Council,23UE,Housing Services,HS001,Professional Advice/Consultants Fees,3952,02/07/2019,01/07/2019,HMCOURTS-SERVICE.G,01452420100,,GL12ZG,REDACTED,556*********6959,9222,FINES,20.00,Pound Sterling (826),1.000000000,20.00,Debit,85481479183152076119992,02/07/2019,GLOUCESTER CC
Gloucester City Council,23UE,Events,GH008,Partnership & Shared Working Agreements,3902,28/06/2019,27/06/2019,PRINTSOMECOM,BARCELONA,ESP,8001,REDACTED,556*********8256,5691,MEN'S AND WOMEN'S CLOTHING STORES,328.57,Pound Sterling (826),1.000000000,328.57,Debit,15276329179000226350034,02/07/2019,GLOUCESTER CC
Gloucester City Council,23UE,Guildhall Events,GH002,Advertising & Publicity,3404,01/07/2019,30/06/2019,FACEBK 5FU8CLWD72,fb.me/ads,IRL,2,REDACTED,556*********8256,7311,ADVERTISING SERVICES,180.69,Pound Sterling (826),1.000000000,180.69,Debit,15265679181000249680638,02/07/2019,GLOUCESTER CC
Gloucester City Council,23UE,Financial Services,FS004,Public Transport - Staff,2402,10/06/2019,07/06/2019,WWW.GWR.COM,07889651585,,SN1 1HL,REDACTED,556*********3063,4112,PASSENGER RAILWAYS,16.70,Pound Sterling (826),1.000000000,16.70,Debit,55504439158081129033192,02/07/2019,GLOUCESTER CC
Gloucester City Council,23UE,Corporate Expenses,FS001,Professional Advice/Consultants Fees,3952,10/06/2019,07/06/2019,WWW.ICO.GOV.UK,03031231113 W,,SK95AF,REDACTED,556*********3063,9399,GOVERNMENT SERVICES NOT ELSEWHERE CLASSIFIED,60.00,Pound Sterling (826),1.000000000,60.00,Debit,85481479159145709842923,02/07/2019,GLOUCESTER CC
Gloucester City Council,23UE,Business Transformation,BI006,General Supplies/Materials,3025,10/06/2019,09/06/2019,AMZNMktplace,amazon.co.uk,GBR,EC2A 2FA,REDACTED,556*********3063,5999,MISCELLANEOUS AND RETAIL STORES,12.48,Pound Sterling (826),1.000000000,12.48,Debit,55204729160200436049666,02/07/2019,GLOUCESTER CC
Gloucester City Council,23UE,Elections,DS004,Equipment and Furniture/European Elections,3001/C242,11/06/2019,23/04/2019,WWW.MILLMOLL.CO.UK,INTERNET,GBR,SE7 7SF,REDACTED,556*********3063,4225,"PUBLIC WAREHOUSING-FARM PROD,REFRIGERATE",-60.00,Pound Sterling (826),1.000000000,-60.00,Credit,05272479162910021199666,02/07/2019,GLOUCESTER CC
Gloucester City Council,23UE,Managing Director & Directors,MT001,Mileage and Travel Allowances,2401,21/06/2019,19/06/2019,BW PLUS WEMBLEY,LONDON,GBR,HA9 6AY,REDACTED,556*********3063,7011,"LODGING, HOTELS, MOTELS, RESORTS",112.95,Pound Sterling (826),1.000000000,112.95,Debit,55184229171901719100934,02/07/2019,GLOUCESTER CC
Gloucester City Council,23UE,Managing Director & Directors,MT001,Mileage and Travel Allowances,2401,21/06/2019,19/06/2019,BW PLUS WEMBLEY,LONDON,GBR,HA9 6AY,REDACTED,556*********3063,7011,"LODGING, HOTELS, MOTELS, RESORTS",112.95,Pound Sterling (826),1.000000000,112.95,Debit,55184229171901719100942,02/07/2019,GLOUCESTER CC
Gloucester City Council,23UE,Managing Director & Directors,MT001,Mileage and Travel Allowances,2401,21/06/2019,19/06/2019,BW PLUS WEMBLEY,LONDON,GBR,HA9 6AY,REDACTED,556*********3063,7011,"LODGING, HOTELS, MOTELS, RESORTS",225.90,Pound Sterling (826),1.000000000,225.90,Debit,55184229171901719100959,02/07/2019,GLOUCESTER CC
Gloucester City Council,23UE,Civica Admin Charges,BI002,Professional Advice/Consultants Fees,3952,01/07/2019,28/06/2019,HMCOURTS-SERVICE.G,01452420100,,GL12ZG,REDACTED,556*********3063,9222,FINES,438.00,Pound Sterling (826),1.000000000,438.00,Debit,85481479180151140223882,02/07/2019,GLOUCESTER CC
